bitfinex-derivatives/quotes_ETHF0:USTF0_20251103
["timestamp","ask_amount","ask_price","bid_price","bid_amount"]
[1762176739053,2.81529695,3715.5,3715.4,12.2727]
[1762176739353,2.2318,3715.3,3715.2,1.44666586]
[1762176739559,2.2318,3715.1,3715.0,1.44666586]
[1762176739755,2.2318,3715.1,3715.0,10.86018965]
[1762176739957,5.04458146,3715.1,3715.0,0.96418965]
[1762176740257,2.81278146,3715.1,3715.0,9.896]
[1762176740461,2.81278146,3715.1,3715.0,10.61921172]
[1762176740462,5.04458146,3715.1,3715.0,10.61921172]
[1762176740656,5.04458146,3715.1,3715.0,0.72321172]
[1762176740858,2.81278146,3715.1,3715.0,12.2687]
[1762176741055,5.04458146,3715.1,3715.0,12.2687]
[1762176741261,5.04458146,3715.1,3715.0,9.894]
[1762176741855,2.2318,3714.9,3714.8,0.96418965]
[1762176742060,5.04458146,3714.9,3714.8,10.85818965]
[1762176742664,5.04458146,3714.9,3714.8,13.23288965]
[1762176742865,5.04458146,3714.9,3714.8,12.2687]
[1762176743066,2.81278146,3714.9,3714.8,12.2687]
[1762176743760,0.00251549,3715.5,3715.0,1.3683]
[1762176743966,2.2318,3715.4,3715.3,0.72336353]
[1762176744162,2.2318,3715.4,3715.3,10.61433524]
[1762176744359,5.04458146,3715.4,3715.3,12.2657]
[1762176744964,5.04458146,3715.4,3715.3,10.85554199]
[1762176745165,5.04458146,3715.4,3715.3,13.23024199]
[1762176745371,5.04458146,3715.4,3715.3,12.2657]
[1762176745764,2.0588,3715.1,3715.0,1.44666586]
[1762176745969,5.2666,3715.1,3715.0,11.33566586]
[1762176746169,5.2666,3715.1,3715.0,9.889]
[1762176746170,8.07938146,3715.1,3715.0,9.889]
[1762176746670,8.07938146,3715.1,3715.0,2.0624]
[1762176746971,2.81278146,3715.1,3715.0,13.1623]
[1762176747266,3.21031549,3715.5,3715.4,2.0196]
[1762176747570,3.21031549,3715.5,3715.4,11.9066]
[1762176747768,8.14249695,3715.5,3715.4,11.9066]
[1762176748071,8.14249695,3715.5,3715.4,11.9056]
[1762176748275,8.14249695,3715.5,3715.4,11.9046]
[1762176748578,9.37669695,3715.5,3715.4,10.85015239]
[1762176748969,9.64309681,3715.5,3715.4,9.885]
[1762176749371,9.64309681,3715.5,3715.4,10.85015239]
[1762176750073,6.43529681,3715.5,3715.4,10.85015239]
[1762176750574,3.08169681,3715.5,3715.4,12.86975239]
[1762176750769,3.08169681,3715.5,3715.4,11.9046]
[1762176750969,5.47739681,3715.5,3715.4,10.85099542]
[1762176751170,8.68519681,3715.5,3715.4,9.885]
[1762176751468,2.1194,3715.4,3715.3,0.96599542]
[1762176751772,5.19858132,3715.4,3715.3,10.84699542]
[1762176752073,2.81278146,3715.4,3715.3,11.9006]
[1762176752373,2.1194,3715.3,3715.2,1.44772859]
[1762176752574,4.93218146,3715.3,3715.2,11.32872859]
[1762176752770,5.19880628,3715.3,3715.2,9.881]
[1762176753163,5.19880628,3715.3,3715.2,11.9006]
[1762176753368,3.07940628,3715.3,3715.2,11.9006]
[1762176753770,3.07940628,3715.3,3715.2,13.34832859]
[1762176753971,3.07940628,3715.3,3715.2,11.9006]
[1762176754166,2.1194,3715.2,3715.1,1.44772859]
[1762176754474,2.1194,3715.2,3715.0,1.44772859]
[1762176754475,2.1194,3715.1,3715.0,1.44772859]
[1762176754676,2.38602482,3715.1,3715.0,1.44772859]
[1762176754876,2.1194,3714.9,3714.8,1.44772859]
[1762176755079,2.1194,3714.9,3714.4,1.9301052]
[1762176755080,2.1194,3714.8,3714.7,1.44772859]
[1762176755265,5.19880628,3714.8,3714.7,2.0196]
[1762176755579,5.19880628,3714.8,3714.7,13.34715193]
[1762176755780,3.07940628,3714.8,3714.7,11.8966]
[1762176755970,3.07940628,3714.8,3714.7,13.34715193]
[1762176756166,3.07940628,3714.8,3714.7,11.8966]
[1762176756371,2.81278146,3714.8,3714.7,11.8966]
[1762176758574,5.19898799,3714.8,3714.7,11.8966]
[1762176759783,2.81278146,3714.8,3714.7,11.8966]
[1762176760381,3.07963751,3714.8,3714.7,11.8966]
[1762176760680,5.19903751,3714.8,3714.7,2.0196]
[1762176760874,5.19903751,3714.8,3714.7,11.8916]
[1762176761281,5.19903751,3714.8,3714.7,12.85886268]
[1762176761484,3.07963751,3714.8,3714.7,11.8916]
[1762176761876,3.07963751,3714.8,3714.7,13.34266863]
[1762176762981,2.81278146,3714.9,3714.7,11.8916]
[1762176763180,3.2078,3715.3,3715.2,2.0196]
[1762176763380,3.47464117,3715.3,3715.2,12.85576056]
[1762176763573,6.28742263,3715.3,3715.2,12.85576056]
[1762176763974,6.28742263,3715.3,3715.2,11.8886]
[1762176764183,6.28742263,3715.3,3715.2,13.33934084]
[1762176764384,6.27185162,3715.3,3715.2,13.33934084]
[1762176765879,8.39125162,3715.3,3715.2,11.8886]
[1762176766086,8.39125162,3715.3,3715.2,11.8856]
[1762176766285,8.39125162,3715.3,3715.2,13.33634084]
[1762176766474,6.27185162,3715.3,3715.2,13.33634084]
[1762176767285,8.39125162,3715.3,3715.2,13.33634084]
[1762176767587,8.39125162,3715.3,3715.2,11.31674084]
[1762176767885,8.39125162,3715.3,3715.2,1.45074084]
[1762176768083,8.39125162,3715.3,3715.1,1.45074084]
[1762176768084,2.1194,3715.2,3715.1,1.45074084]
[1762176768288,5.18345162,3715.2,3715.1,11.31474084]
[1762176768880,0.00251549,3715.5,3715.1,9.864]
[1762176769083,2.12191549,3715.5,3715.4,2.0196]
[1762176769384,0.25389861,3715.5,3715.4,11.8826]
[1762176769587,3.06668007,3715.5,3715.4,11.8826]
[1762176769784,0.00251549,3715.5,3715.4,11.8826]
[1762176769987,0.00251549,3715.5,3715.4,13.8127052]
[1762176770484,0.00251549,3715.5,3715.4,3.9497052]
[1762176770679,0.00251549,3715.5,3715.4,11.8806]
[1762176771683,0.00251549,3715.5,3715.4,2.0196]
[1762176771883,0.00251549,3715.5,3715.4,11.8806]
[1762176772084,0.00251549,3715.5,3715.4,11.8796]
[1762176772278,2.81529695,3715.5,3715.4,11.8796]
[1762176772579,2.81529695,3715.5,3715.4,2.0196]
[1762176772783,2.1194,3715.4,3715.0,3.1420052]
[1762176772994,2.81278146,3715.3,3715.2,2.0196]
[1762176773188,0.00251549,3715.5,3715.4,2.0196]
[1762176773484,1.23671549,3715.5,3715.2,2.0196]
[1762176773689,2.81278146,3715.3,3715.2,2.0196]
[1762176773888,2.81278146,3715.3,3715.2,11.8776]
[1762176774286,0.00251549,3715.5,3715.4,2.0196]
[1762176775185,0.00251549,3715.5,3715.4,2.50414]
[1762176775891,0.00251549,3715.5,3715.4,3.9497052]
[1762176776190,0.00251549,3715.5,3715.4,11.8746]
[1762176776391,0.00251549,3715.5,3715.4,13.8047052]
[1762176777294,0.00251549,3715.5,3715.4,11.8746]
[1762176777687,0.00251549,3715.5,3715.4,12.35914]
[1762176777885,0.00251549,3715.5,3715.4,19.08794]
[1762176778085,4.4062,3716.5,3716.4,0.6959]
[1762176778291,6.44495004,3716.5,3716.4,9.853]
[1762176778593,9.2577315,3716.5,3716.4,9.853]
[1762176778793,1.7876,3716.3,3716.2,0.96592591]
[1762176779095,4.60383676,3716.3,3716.2,10.81639895]
[1762176779900,4.60383676,3716.3,3716.2,0.00247304]
[1762176780094,4.60383676,3716.3,3716.2,7.93947304]
[1762176780696,1.7910553,3716.3,3716.2,7.93947304]
[1762176780885,4.8548356,3716.3,3716.2,0.00247304]
[1762176781196,4.8548356,3716.3,3716.2,9.85347304]
[1762176781788,4.8548356,3716.3,3716.2,0.00247304]
[1762176781994,4.8548356,3716.3,3716.2,7.28047304]
[1762176782194,4.8548356,3716.3,3716.2,0.00247304]
[1762176782394,4.8548356,3716.3,3716.2,9.85047304]
[1762176783298,4.85473703,3716.3,3716.2,9.85047304]
[1762176783496,4.85473703,3716.3,3716.2,0.00247304]
[1762176783694,4.85473703,3716.3,3716.2,9.85047304]
[1762176785101,4.85473703,3716.3,3716.2,0.00247304]
[1762176785602,4.85473703,3716.3,3716.2,8.39947304]
[1762176785803,4.85473703,3716.3,3716.2,9.84747304]
[1762176787201,4.85473703,3716.3,3716.2,0.00247304]
[1762176787397,4.85473703,3716.3,3716.2,9.84647304]
[1762176789401,3.06713703,3716.3,3716.2,11.26668927]
[1762176789598,3.06713703,3716.3,3716.2,10.54237304]
[1762176789999,0.0034553,3716.3,3716.2,10.54237304]
[1762176790207,0.0034553,3716.3,3716.2,0.00247304]
[1762176790501,0.20610837,3717.9,3716.2,19.77747304]
[1762176790502,3.41390837,3717.9,3716.2,19.77747304]
[1762176790697,1.1984,3718.5,3716.2,19.77747304]
[1762176790698,1.1984,3717.5,3717.3,0.96559488]
[1762176790896,1.1984,3717.5,3717.4,10.80559488]
[1762176791101,4.01118146,3717.5,3717.4,9.84]
[1762176791304,4.01118146,3717.5,3717.4,10.8048813]
[1762176791502,4.01465937,3717.5,3717.4,9.84]
[1762176791700,2.81625937,3717.5,3717.4,11.28839232]
[1762176792103,4.01465937,3717.5,3717.4,11.28839232]
[1762176792302,1.1984,3717.0,3716.9,1.44764182]
[1762176792503,1.1984,3717.0,3716.9,9.838]
[1762176792807,1.20187791,3717.5,3717.0,0.48433]
[1762176793108,4.01465937,3717.5,3717.4,0.96472873]
[1762176793304,4.01465937,3717.5,3717.4,10.80272873]
[1762176794307,4.01465937,3717.5,3717.4,9.838]
[1762176794617,1.7876,3717.4,3717.2,0.96472873]
[1762176794810,4.60038146,3717.3,3717.2,0.96472873]
[1762176795011,4.60038146,3717.3,3717.2,10.80072873]
[1762176795514,1.20187791,3717.5,3717.2,9.836]
[1762176795811,2.81278146,3717.4,3717.3,0.96472873]
[1762176796402,2.81278146,3717.4,3717.2,0.96472873]
[1762176796616,1.20187791,3717.5,3717.2,0.96472873]
[1762176796617,2.81278146,3717.3,3717.2,0.96472873]
[1762176796806,2.81278146,3717.3,3717.2,9.835]
[1762176797007,2.81278146,3717.3,3717.2,10.79972873]
[1762176797307,2.81278146,3717.3,3717.2,9.835]
[1762176798106,1.7876,3717.1,3717.0,0.96472873]
[1762176798305,1.7876,3717.1,3716.4,0.72276006]
[1762176798306,2.986,3716.5,3716.4,0.72276006]
[1762176798615,2.986,3716.5,3716.4,10.55676006]
[1762176798818,2.986,3716.5,3716.2,0.00247304]
[1762176798819,1.7876,3716.4,3716.3,10.55676006]
[1762176799013,1.7876,3716.4,3716.3,9.834]
[1762176799313,4.60038146,3716.4,3716.3,9.834]
[1762176799516,4.850892,3716.4,3716.3,9.834]
[1762176799916,1.7876,3716.3,3716.2,0.00247304]
[1762176800116,4.60038146,3716.3,3716.2,9.83547304]
[1762176801619,4.60038146,3716.3,3716.2,0.00247304]
[1762176801808,4.60038146,3716.3,3716.2,5.08647304]
[1762176803020,2.81278146,3716.3,3716.2,5.08647304]
[1762176803417,4.60038146,3716.3,3716.2,5.08647304]
[1762176804220,4.60038146,3716.3,3716.2,9.83447304]
[1762176804616,4.60038146,3716.3,3716.2,0.00247304]
[1762176804816,4.60038146,3716.3,3716.2,6.27847304]
[1762176806318,2.81278146,3716.3,3716.2,6.27847304]
[1762176806824,4.72368146,3716.3,3716.2,6.27847304]
[1762176807321,2.81278146,3716.3,3716.2,6.27847304]
[1762176807517,2.81278146,3716.3,3716.2,7.0012331]
[1762176807722,4.73168146,3716.3,3716.2,7.0012331]
[1762176808222,4.73168146,3716.3,3716.2,0.72559245]
[1762176808522,4.73168146,3716.3,3716.2,10.55559245]
[1762176809123,2.81278146,3716.3,3716.2,10.55559245]
[1762176810623,1.1984,3716.5,3716.2,10.55559245]
[1762176810826,4.73168146,3716.3,3716.2,10.55559245]
[1762176811021,2.81278146,3716.3,3716.2,10.55559245]
[1762176811221,4.73168146,3716.3,3716.2,10.55559245]
[1762176812121,2.81278146,3716.3,3716.2,10.55559245]
[1762176812323,2.81278146,3716.3,3716.2,9.83247304]
[1762176813922,2.81278146,3716.3,3716.2,9.82947304]
[1762176814824,4.73168146,3716.3,3716.2,9.82947304]
[1762176815225,2.81278146,3716.3,3716.2,9.82947304]
[1762176816031,1.1984,3716.5,3716.2,9.82947304]
[1762176816231,4.4062,3717.0,3716.6,0.48438]
[1762176816530,1.1984,3717.0,3716.7,9.825]
[1762176817233,2.81278146,3717.1,3716.8,0.48435]
[1762176817431,3.2078,3717.4,3716.8,0.48436]
[1762176817632,3.2078,3717.4,3717.3,0.72321594]
[1762176817829,3.2078,3717.4,3717.3,10.54821594]
[1762176818029,6.02058146,3717.4,3717.3,10.54821594]
[1762176818435,7.93948146,3717.4,3717.3,9.825]
[1762176818929,7.93948146,3717.4,3717.3,9.824]
[1762176819332,7.93948146,3717.4,3717.3,10.54721594]
[1762176819532,4.73168146,3717.4,3717.3,10.54721594]
[1762176819831,2.81278146,3717.4,3717.3,10.54721594]
[1762176820028,4.73168146,3717.4,3717.3,10.54721594]
[1762176820227,4.73168146,3717.4,3717.3,0.72321594]
[1762176820732,4.73168146,3717.4,3717.3,10.54521594]
[1762176821030,2.81278146,3717.4,3717.3,10.54521594]
[1762176821430,0.00347791,3717.5,3717.3,9.822]
[1762176821729,1.1065,3719.0,3717.5,1.21067]
[1762176822034,1.1065,3718.5,3718.3,1.44586374]
[1762176822332,1.1065,3718.5,3718.3,0.48416]
[1762176822527,1.10948988,3718.5,3718.4,9.821]
[1762176822720,1.10948988,3718.5,3718.4,10.30515]
[1762176823127,1.10948988,3718.5,3718.4,9.821]
[1762176823928,1.10948988,3718.5,3718.1,4.65366374]
[1762176824129,1.10948988,3718.5,3718.2,9.821]
[1762176824627,2.94882586,3718.5,3718.2,9.821]
[1762176826037,1.9189,3718.3,3718.2,0.72107115]
[1762176826236,1.83933598,3718.3,3718.2,9.819]
[1762176826535,3.75823598,3718.3,3718.2,9.819]
[1762176826933,1.1065,3718.0,3717.8,0.72107115]
[1762176827135,2.94583598,3718.0,3717.9,9.818]
[1762176827335,1.1065,3718.0,3717.9,9.818]
[1762176827532,2.94583598,3718.0,3717.9,9.818]
[1762176828129,1.9189,3717.9,3717.8,0.72107115]
[1762176828327,3.75823598,3717.9,3717.8,10.53807115]
[1762176828735,1.83933598,3717.9,3717.8,0.72107115]
[1762176829136,0.94583598,3718.0,3717.8,10.53807115]
[1762176830130,0.94583598,3718.0,3717.9,0.72107115]
[1762176830834,0.94583598,3718.0,3717.9,10.53707115]
[1762176831039,2.86473598,3718.0,3717.9,9.816]
[1762176831240,0.94583598,3718.0,3717.9,9.816]
[1762176831437,0.94583598,3718.0,3717.8,0.72107115]
[1762176831638,2.86473598,3718.0,3717.9,9.816]
[1762176831838,2.86473598,3718.0,3717.8,0.72107115]
[1762176831839,1.9189,3717.9,3717.8,0.72107115]
[1762176832137,1.9189,3717.9,3717.8,10.53607115]
[1762176832529,0.94583598,3718.0,3717.8,10.53607115]
[1762176835342,0.94583598,3718.0,3717.9,0.72107115]
[1762176836039,1.10948988,3718.5,3717.9,6.724]
[1762176836237,1.17498988,3718.5,3718.4,0.72086344]
[1762176836444,1.17498988,3718.5,3718.4,9.813]
[1762176836640,3.03678988,3718.5,3718.2,0.96110223]
[1762176836942,3.03678988,3718.5,3718.4,9.813]
[1762176837446,3.03678988,3718.5,3718.4,10.53387061]
[1762176837638,3.03678988,3718.5,3718.4,0.72087061]
[1762176837939,1.17498988,3718.5,3718.4,9.797]
[1762176838338,3.03678988,3718.5,3718.4,9.797]
[1762176838539,1.17498988,3718.5,3718.4,9.797]
[1762176840237,1.17498988,3718.5,3718.3,0.72087061]
[1762176840440,1.17498988,3718.5,3718.4,9.811]
[1762176840935,1.17498988,3718.5,3718.4,11.01603061]
[1762176841140,1.17498988,3718.5,3718.4,14.46406223]
[1762176841336,1.17498988,3718.5,3718.4,13.50296]
[1762176841537,0.00298988,3718.5,3718.4,13.50296]
[1762176842735,1.1065,3719.0,3718.4,14.46466374]
[1762176842935,4.3798,3720.0,3719.1,0.48406]
[1762176843146,4.3798,3720.0,3719.2,10.53172933]
[1762176843550,1.8618,3719.3,3719.2,10.53172933]
[1762176843849,0.00331892,3719.3,3719.2,10.53502848]
[1762176844244,1.172,3720.0,3719.2,10.29734915]
[1762176844445,1.172,3720.0,3719.6,0.484]
[1762176844647,1.172,3720.0,3719.6,9.809]
[1762176844943,1.172,3720.0,3719.6,10.293]
[1762176845339,0.02710832,3719.7,3719.6,9.808]
[1762176845540,0.02710832,3719.7,3719.6,1.44128604]
[1762176845742,0.02710832,3719.7,3719.6,9.808]
[1762176846342,0.02710832,3719.7,3719.5,4.16879369]
[1762176846543,0.02710832,3719.7,3719.5,4.65280369]
[1762176846750,0.02710832,3719.7,3719.6,9.807]
[1762176847138,0.02710832,3719.7,3719.6,10.291]
[1762176847350,0.02710832,3719.7,3719.6,9.807]
[1762176847745,0.02710832,3719.7,3719.5,4.16879369]
[1762176848047,1.88890832,3719.7,3719.6,9.806]
[1762176848350,0.02710832,3719.7,3719.6,9.806]
[1762176849243,0.02710832,3719.7,3719.5,4.16879369]
[1762176849450,0.02710832,3719.7,3719.6,9.805]
[1762176850247,0.02710832,3719.7,3719.6,9.804]
[1762176850549,0.02710832,3719.7,3719.5,4.16879369]
[1762176850748,0.02710832,3719.7,3719.6,9.804]
[1762176850946,0.02710832,3719.7,3719.5,4.65280369]
[1762176851248,0.02710832,3719.7,3719.6,9.804]
[1762176851450,0.02710832,3719.7,3719.6,10.76499369]
[1762176851648,0.02710832,3719.7,3719.6,11.24899369]
[1762176851848,0.02710832,3719.7,3719.6,10.76499369]
[1762176852052,0.02710832,3719.7,3719.6,9.804]
[1762176853854,0.02710832,3719.7,3719.6,10.52258022]
[1762176854342,1.88890832,3719.7,3719.6,0.72058022]
[1762176854548,1.88890832,3719.7,3719.6,10.52258022]
[1762176855344,1.88890832,3719.7,3719.2,0.00329915]
[1762176855345,1.8618,3719.3,3719.2,0.00329915]
[1762176855552,2.9182,3719.0,3718.5,1.44128604]
[1762176855743,1.8618,3718.6,3718.0,10.9813]
[1762176855942,0.26192712,3718.5,3718.0,10.9813]
[1762176856146,0.26192712,3718.4,3718.3,1.8736]
[1762176856554,0.26192712,3719.1,3718.3,1.8736]
[1762176856754,1.8618,3718.4,3718.3,0.00325857]
[1762176856943,2.12372712,3718.4,3718.3,0.00325857]
[1762176857144,5.33152712,3718.4,3718.3,0.00325857]
[1762176858148,13.33152712,3718.4,3718.3,0.00325857]
[1762176859550,13.33152712,3718.4,3717.7,3.791]
[1762176859750,1.8618,3717.8,3717.7,3.791]
[1762176859955,1.8618,3717.8,3717.6,9.8]
[1762176860463,1.8618,3717.8,3717.6,9.80327909]
[1762176860960,1.8618,3717.7,3717.6,0.00327909]
[1762176861256,1.8618,3717.7,3717.6,9.18627909]
[1762176861856,1.8618,3717.7,3717.6,11.05987909]
[1762176862356,3.2078,3718.4,3717.6,11.05987909]
[1762176862558,0.26190949,3718.3,3717.6,11.05987909]
[1762176862857,0.26190949,3718.2,3717.6,11.05987909]
[1762176863059,0.26190949,3718.1,3717.6,11.05987909]
[1762176863263,3.2078,3718.4,3717.6,11.05987909]
[1762176863559,0.26188623,3718.3,3717.6,1.87687909]
[1762176863857,0.26188623,3718.2,3717.7,9.8]
[1762176864057,0.26188623,3718.1,3717.7,9.8]
[1762176864257,3.2078,3718.4,3718.3,1.8736]
[1762176864561,3.2078,3718.8,3718.3,11.6736]
[1762176864758,0.26180572,3718.7,3718.5,1.1803]
[1762176864958,3.2078,3718.8,3718.5,1.1803]
[1762176865159,1.8618,3718.7,3718.6,9.799]
[1762176865458,3.2078,3718.8,3718.6,11.6849]
[1762176865754,3.2078,3719.3,3718.7,1.8859]
[1762176865950,1.7612,3718.8,3718.7,1.8859]
[1762176866153,1.7612,3718.8,3718.7,11.6849]
[1762176866458,1.7612,3718.8,3718.7,9.799]
[1762176866659,1.7612,3718.8,3718.7,11.6849]
[1762176866854,3.2078,3719.3,3718.7,11.6849]
[1762176867061,0.26181432,3719.2,3718.7,11.6849]
[1762176867253,0.26181432,3719.1,3718.7,11.6849]
[1762176867453,0.26181432,3719.0,3718.9,1.8725]
[1762176867654,3.2078,3719.3,3719.0,1.1107]
[1762176867953,0.26178415,3719.2,3719.0,1.1107]
[1762176868151,3.2078,3719.3,3719.1,1.8725]
[1762176868351,0.26179872,3719.2,3719.1,1.8725]
[1762176869261,1.8114,3719.0,3718.9,9.798]
[1762176870448,1.8114,3718.8,3718.7,3.2078]
[1762176870756,3.2078,3719.4,3718.7,14.8773]
[1762176870966,0.26183318,3719.3,3719.0,1.1107]
[1762176871161,0.26183318,3719.2,3719.1,1.8725]
[1762176871459,3.2078,3719.4,3719.1,1.8725]
[1762176871660,0.26182934,3719.3,3719.1,1.8725]
[1762176871961,3.2078,3719.4,3719.1,1.8725]
[1762176872157,0.26182852,3719.3,3719.1,1.8725]
[1762176872358,1.8114,3719.2,3719.1,1.8725]
[1762176872559,1.8114,3719.1,3719.0,1.1107]
[1762176872961,3.2078,3719.4,3719.0,2.9832]
[1762176873263,1.8114,3719.1,3719.0,10.9057]
[1762176873761,1.8114,3719.1,3719.0,12.7782]
[1762176873963,3.2078,3719.4,3719.3,1.8725]
[1762176874156,5.2810397,3719.4,3719.3,1.8725]
[1762176874753,0.2618397,3719.4,3719.3,1.8725]
[1762176874959,0.02710832,3719.7,3719.6,1.8725]
[1762176875159,0.02710832,3719.7,3719.6,14.8743]
[1762176875560,0.02710832,3719.7,3719.6,15.3583]
[1762176875963,0.02710832,3719.7,3719.6,14.8743]
[1762176878367,0.02710832,3719.7,3719.6,14.8723]
[1762176879569,0.02710832,3719.7,3719.6,15.3563]
[1762176880467,0.02710832,3719.7,3719.6,15.3553]
[1762176882664,1.041,3721.5,3720.5,1.1107]
[1762176882665,3.2078,3721.4,3720.5,1.1107]
[1762176882969,1.92708521,3722.8,3720.5,1.1107]
[1762176882970,1.44531391,3722.9,3721.3,3.2078]
[1762176883164,3.2078,3722.5,3722.0,1.1107]
[1762176883364,1.8114,3722.2,3722.0,1.1107]
[1762176883565,1.8114,3722.2,3722.1,4.894]
[1762176883767,0.00193423,3722.2,3722.1,11.6605]
[1762176884164,0.00193423,3722.2,3722.1,1.8725]
[1762176884368,1.81333423,3722.2,3722.1,9.787]
[1762176884865,0.00193423,3722.2,3722.1,9.787]
[1762176885077,1.81333423,3722.2,3722.1,9.787]
[1762176885668,1.81333423,3722.2,3722.0,1.11370815]
[1762176885868,1.81333423,3722.2,3722.1,9.787]
[1762176886373,1.8114,3722.1,3722.0,0.00300815]
[1762176886674,5.0192,3722.1,3722.0,0.00300815]
[1762176886876,5.0192,3722.1,3722.0,9.78900815]
[1762176887269,5.0192,3722.1,3722.0,0.00300815]
[1762176887866,5.0192,3722.1,3721.5,1.1107]
[1762176888077,5.0192,3721.6,3721.5,1.1107]
[1762176888277,1.8114,3721.5,3720.7,3.2078]
[1762176888482,1.8114,3721.5,3721.1,9.785]
[1762176888981,1.8114,3721.3,3721.2,9.784]
[1762176889578,1.8114,3721.2,3721.1,0.00220754]
[1762176889778,1.8114,3721.2,3721.1,9.78620754]
[1762176889979,3.2078,3721.7,3721.5,2.9832]
[1762176890281,3.2078,3721.7,3721.6,9.281]
[1762176890282,5.0192,3721.7,3721.6,9.281]
[1762176890480,3.2078,3722.1,3722.0,1.1107]
[1762176890779,0.00193423,3722.2,3722.1,1.8725]
[1762176890983,0.00193423,3722.2,3722.1,11.6555]
[1762176891575,0.00193423,3722.2,3722.1,1.8725]
[1762176891776,1.81333423,3722.2,3721.5,1.1107]
[1762176891982,1.81333423,3722.2,3721.6,7.716]
[1762176892282,1.81333423,3722.2,3721.7,9.783]
[1762176892580,1.81333423,3722.2,3721.8,9.783]
[1762176893379,1.81333423,3722.2,3721.9,9.782]
[1762176894084,0.00193423,3722.2,3722.1,1.8725]
[1762176895881,0.00193423,3722.2,3722.1,11.6535]
[1762176896892,3.2078,3722.5,3722.4,1.7285]
[1762176897782,3.20974369,3722.5,3722.4,1.7285]
[1762176898188,3.20974369,3722.5,3722.4,11.5085]
[1762176898890,3.20974369,3722.5,3722.4,11.5075]
[1762176899091,4.83894369,3722.5,3722.4,11.5075]
[1762176899290,4.83894369,3722.5,3722.3,9.779]
[1762176899688,1.6292,3722.4,3722.3,9.779]
[1762176900688,1.6292,3722.4,3722.0,1.1107]
[1762176900993,1.6292,3722.4,3722.1,8.729]
[1762176901587,1.6292,3722.2,3722.1,8.729]
[1762176902195,3.20974369,3722.5,3722.1,10.4575]
[1762176903189,0.25062741,3722.4,3722.2,9.777]
[1762176903390,3.20974369,3722.5,3722.4,1.7285]
[1762176903699,3.46037175,3722.5,3722.4,11.5055]
[1762176903994,3.20974369,3722.5,3722.4,11.5055]
[1762176904689,0.00194369,3722.5,3722.4,11.5055]
[1762176905597,0.00194369,3722.5,3722.4,11.5045]
[1762176908202,3.2078,3722.9,3722.8,1.7285]
[1762176908400,3.45891024,3722.9,3722.8,11.5035]
[1762176909291,3.46090382,3722.9,3722.8,11.5035]
[1762176909502,0.25310382,3722.9,3722.8,11.5035]
[1762176910003,0.25310382,3722.9,3722.8,11.5025]
[1762176910498,1.88230382,3722.9,3722.8,11.5025]
[1762176910697,0.25310382,3722.9,3722.8,1.7285]
[1762176910891,0.25310382,3722.9,3722.8,11.5025]
[1762176913105,0.25310382,3722.9,3722.8,1.7285]
[1762176913306,0.25310382,3722.9,3722.8,11.5015]
[1762176913701,0.25310382,3722.9,3722.8,1.7285]
[1762176913906,0.25310382,3722.9,3722.8,11.5005]
[1762176914797,0.25310382,3722.9,3722.8,1.7285]
[1762176915004,0.25310382,3722.9,3722.8,11.5005]
[1762176916205,0.25310382,3722.9,3722.8,11.4995]
[1762176916402,3.46090382,3722.9,3722.8,1.7285]
[1762176916603,3.46090382,3722.9,3722.8,11.4995]
[1762176917009,3.46090382,3722.9,3722.8,9.771]
[1762176917706,0.25310382,3722.9,3722.8,9.771]
[1762176918010,3.46090382,3722.9,3722.8,9.771]
[1762176918807,3.46090382,3722.9,3722.8,11.4995]
[1762176919910,3.46090382,3722.9,3722.8,1.7285]
[1762176920113,3.46090382,3722.9,3722.8,11.4975]
[1762176920306,0.25310382,3722.9,3722.8,11.4975]
[1762176925407,1.527,3722.7,3722.6,0.95565459]
[1762176925614,1.77811024,3722.7,3722.6,9.766]
[1762176926204,1.77811024,3722.7,3722.6,11.1903]
[1762176926410,0.25111024,3722.7,3722.6,11.1903]
[1762176926712,3.20979358,3722.9,3722.7,1.4243]
[1762176926917,0.25456722,3722.8,3722.7,1.4243]
[1762176927114,1.70466733,3722.8,3722.7,9.766]
[1762176927617,1.4501,3722.5,3722.4,0.95565459]
[1762176927812,1.4501,3722.5,3722.0,1.1107]
[1762176927813,1.4501,3722.1,3722.0,2.06635459]
[1762176928012,1.4501,3721.9,3721.4,9.765]
[1762176928213,0.25456733,3721.8,3721.7,1.493]
[1762176928819,0.25456733,3722.0,3721.7,1.493]
[1762176929116,0.25456733,3721.9,3721.8,1.493]
[1762176929621,0.25456733,3721.9,3721.8,11.258]
[1762176930014,1.70466733,3721.9,3721.1,0.00220754]
[1762176930207,0.25456733,3721.8,3721.7,1.493]
[1762176930411,0.25456733,3721.8,3721.7,9.98]
[1762176931420,1.70466733,3721.8,3721.7,9.764]
[1762176931812,1.4501,3721.4,3721.3,9.764]
[1762176932115,1.70466733,3721.4,3721.3,9.764]
[1762176932420,0.25456733,3721.4,3721.3,11.257]
[1762176933218,1.4501,3721.2,3721.1,0.00220754]
[1762176933420,1.70466733,3721.2,3721.1,0.00220754]
[1762176933619,1.70466733,3721.2,3721.1,8.70520754]
[1762176934819,1.70466733,3721.2,3721.1,0.00220754]
[1762176935918,8.42306733,3721.2,3719.8,3.2078]
[1762176936119,3.2078,3720.5,3720.1,5.622]
[1762176936418,3.2078,3720.9,3720.5,0.9351]
[1762176936619,0.25372288,3720.8,3720.7,1.493]
[1762176937116,1.70382288,3720.8,3720.7,0.0023221]
[1762176938114,16.42302288,3720.8,3720.7,0.0023221]
[1762176938617,16.42302288,3720.8,3719.3,3.2078]
[1762176938918,0.5464,3721.0,3719.7,9.763]
[1762176938919,3.2078,3720.2,3719.7,9.763]
[1762176939419,1.4501,3720.1,3719.7,9.763]
[1762176939720,1.45229046,3720.1,3720.0,0.93765416]
[1762176939920,1.45229046,3720.1,3720.0,0.00255416]
[1762176940813,0.00219046,3720.1,3720.0,2.43065416]
[1762176944611,1.45229046,3720.1,3720.0,2.43065416]
[1762176946624,1.45229046,3720.1,3720.0,0.93765416]
[1762176946819,1.45229046,3720.1,3720.0,0.00255416]
[1762176947319,4.66009046,3720.1,3720.0,0.00255416]
[1762176948121,4.66009046,3720.1,3720.0,0.93765416]
[1762176948314,4.66009046,3720.1,3720.0,0.00255416]
[1762176948720,11.38009046,3720.1,3720.0,0.00255416]